bitfinex/quotes_SOLUSD_20250123
["timestamp","ask_amount","ask_price","bid_price","bid_amount"]
[1737645494450,0.27,245.48,245.41,0.063]
[1737645494451,0.27,245.46,245.41,0.063]
[1737645494823,36.06311797,245.56,245.41,0.063]
[1737645494824,0.27,245.5,245.41,4.1377]
[1737645495036,0.27,245.58,245.41,4.1377]
[1737645495259,0.27,245.43,245.41,0.063]
[1737645496037,36.33311797,245.43,245.41,0.063]
[1737645496260,36.06311797,245.42,245.41,0.063]
[1737645496467,36.06311797,245.42,245.2,72.69823899]
[1737645496468,0.27,245.3,245.21,4.0781]
[1737645496638,0.27,245.28,245.21,4.0781]
[1737645496837,0.27,245.32,245.21,4.0781]
[1737645497049,0.27,245.35,245.21,14.2734]
[1737645497250,0.27,245.26,245.2,72.69823899]
[1737645497452,36.06311797,245.31,245.2,72.69823899]
[1737645497453,0.27,245.3,245.2,72.69823899]
[1737645497740,0.27,245.22,245.2,72.69823899]
[1737645498164,36.33311797,245.22,245.2,72.69823899]
[1737645499045,36.33311797,245.24,245.2,72.69823899]
[1737645499260,36.33311797,245.28,245.2,72.69823899]
[1737645499664,0.27,245.3,245.2,72.69823899]
[1737645499968,36.06311797,245.28,245.2,76.77643899]
[1737645500158,0.27,245.29,245.2,76.77643899]
[1737645500342,0.27,245.25,245.2,72.69823899]
[1737645500544,0.27,245.25,245.2,76.77633899]
[1737645500748,0.27,245.21,245.2,72.69823899]
[1737645500951,36.33311797,245.26,245.2,72.69823899]
[1737645501257,0.27,245.24,245.2,72.69823899]
[1737645501463,0.27,245.3,245.21,23.776884]
[1737645501770,36.33311797,245.36,245.21,23.776884]
[1737645501950,36.06311797,245.34,245.21,23.776884]
[1737645502273,0.27,245.28,245.2,76.77633899]
[1737645502453,0.27,245.34,245.22,23.776884]
[1737645502644,0.27,245.39,245.24,23.776884]
[1737645502849,36.33311797,245.38,245.23,20.0]
[1737645503060,0.27,245.44,245.29,23.776884]
[1737645503260,0.27,245.36,245.31,23.776884]
[1737645503460,0.27,245.21,245.2,72.69823899]
[1737645504666,36.33311797,245.21,245.2,72.69823899]
[1737645505260,37.33311797,245.21,245.2,72.69823899]
[1737645505458,36.33311797,245.21,245.2,72.69823899]
[1737645507161,36.33311797,245.21,245.16,0.063]
[1737645507162,0.27,245.17,245.16,0.063]
[1737645507370,36.33311797,245.17,245.16,0.063]
[1737645507869,36.06311797,245.17,245.16,0.063]
[1737645508052,36.33311797,245.17,245.16,0.063]
[1737645508246,36.06311797,245.17,245.16,0.063]
[1737645508445,36.33311797,245.17,245.16,0.063]
[1737645509449,0.27,245.17,245.16,0.063]
[1737645509850,36.33311797,245.17,245.16,0.063]
[1737645511755,36.33311797,245.17,244.9,2.707]
[1737645511756,37.33311797,245.17,244.9,2.707]
[1737645512075,0.27,245.0,244.91,4.0831]
[1737645512278,0.27,244.99,244.91,14.2909]
[1737645512573,0.27,245.06,244.91,14.2909]
[1737645512782,0.27,245.09,244.94,1.0]
[1737645512947,36.06311797,245.14,245.0,20.0]
[1737645513147,0.27,245.16,245.03,23.776884]
[1737645513772,0.27,245.11,245.03,23.776884]
[1737645514077,0.27,245.11,245.02,4.0812]
[1737645514272,0.27,245.01,244.92,14.2903]
[1737645514584,0.27,245.11,244.94,1.0]
[1737645514777,36.33311797,245.04,244.92,14.2903]
[1737645514977,0.27,245.04,244.92,14.2903]
[1737645515159,0.27,245.04,244.95,23.776884]
[1737645515354,0.27,245.07,244.92,34.7051]
[1737645515559,36.06311797,245.08,244.92,35.7051]
[1737645515560,36.06311797,245.06,244.92,35.7051]
[1737645515755,36.06311797,245.06,244.95,20.0]
[1737645515955,36.33311797,245.04,244.92,14.2903]
[1737645516187,0.27,245.04,244.92,14.2903]
[1737645516879,0.27,245.07,244.93,23.776884]
[1737645517258,0.27,245.07,244.94,14.2891]
[1737645517656,0.27,245.05,244.95,23.776884]
[1737645517866,0.27,245.07,244.95,23.776884]
[1737645518062,0.27,245.05,244.95,23.776884]
[1737645518363,0.27,244.99,244.94,14.2891]
[1737645518559,0.27,244.9,244.71,1.0]
[1737645518857,0.27,244.88,244.73,10.2152]
[1737645519077,0.27,244.9,244.73,1.0]
[1737645519262,0.27,244.92,244.8,15.3022]
[1737645519782,36.06311797,245.01,244.81,23.776884]
[1737645519984,36.06311797,245.03,244.84,20.0]
[1737645520170,36.06311797,245.01,244.84,20.0]
[1737645520372,36.06311797,245.03,244.85,23.776884]
[1737645520569,36.06311797,245.03,244.83,20.0]
[1737645520884,36.06311797,245.01,244.8,15.3022]
[1737645521093,36.06311797,244.96,244.8,5.0898]
[1737645521266,40.14371797,245.06,244.83,1.0]
[1737645521466,40.14371797,245.06,244.85,20.0]
[1737645521467,36.06311797,245.02,244.85,20.0]
[1737645521790,36.06311797,244.98,244.82,4.0846]
[1737645522094,36.06311797,244.98,244.82,14.2961]
[1737645522294,36.06311797,244.98,244.82,4.0846]
[1737645522768,36.06311797,245.04,244.84,1.0]
[1737645522974,36.06311797,245.07,244.82,34.7192]
[1737645523180,36.06311797,245.13,244.92,20.0]
[1737645523485,36.06311797,245.11,244.94,20.0]
[1737645523660,36.06311797,245.13,244.95,2.7145]
[1737645523985,36.06311797,245.17,245.0,23.776884]
[1737645524368,36.06311797,245.15,245.0,23.776884]
[1737645524889,36.06311797,245.17,245.04,23.776884]
[1737645525071,36.06311797,245.21,245.04,23.776884]
[1737645525271,36.06311797,245.17,244.98,14.2868]
[1737645525486,36.06311797,245.13,244.98,4.0819]
[1737645525860,36.06311797,245.15,244.99,23.776884]
[1737645526063,36.06311797,245.21,245.01,20.0]
[1737645526266,36.06311797,245.23,245.02,1.0]
[1737645526563,36.06311797,245.23,245.04,23.776884]
[1737645526883,36.06311797,245.17,244.98,14.2868]
[1737645527061,36.06311797,245.15,244.98,14.2868]
[1737645527270,4.0796,245.12,244.96,4.0822]
[1737645527767,36.06311797,245.13,244.96,14.2879]
[1737645527960,36.06311797,245.13,244.97,23.776884]
[1737645528164,36.06311797,245.15,244.97,23.776884]
[1737645528365,36.06311797,245.15,244.96,14.2879]
[1737645528581,36.06311797,245.11,244.96,4.0822]
[1737645528792,36.06311797,245.13,244.96,4.0822]
[1737645529362,36.06311797,245.13,244.97,23.776884]
[1737645529585,36.06311797,245.19,244.97,23.776884]
[1737645529871,36.06311797,245.17,245.0,20.0]
[1737645530068,36.06311797,245.15,244.97,23.776884]
[1737645530770,4.0778,245.23,245.03,23.776884]
[1737645530966,40.14081797,245.24,245.03,23.776884]
[1737645531564,40.14081797,245.24,245.04,14.2833]
[1737645531780,36.06311797,245.16,245.04,4.0809]
[1737645531985,36.06311797,245.22,245.04,14.2833]
[1737645532288,14.2717,245.24,244.96,14.2878]
[1737645532289,36.06311797,245.18,244.96,14.2878]
[1737645532503,36.06311797,245.18,244.97,23.776884]
[1737645532707,36.06311797,245.17,244.96,14.2878]
[1737645533182,36.06311797,245.19,244.97,23.776884]
[1737645533503,36.06311797,245.21,244.99,23.776884]
[1737645533688,36.06311797,245.21,245.03,23.776884]
[1737645533883,36.06311797,245.21,245.02,20.0]
[1737645534188,36.06311797,245.19,244.98,14.2868]
[1737645534392,36.06311797,245.23,245.01,20.0]
[1737645534586,36.06311797,245.23,245.02,20.0]
[1737645534784,36.06311797,245.23,245.03,23.776884]
[1737645534990,36.06311797,245.21,245.03,23.776884]
[1737645535190,36.06311797,245.23,245.03,23.776884]
[1737645535482,36.06311797,245.25,245.04,14.2833]
[1737645535680,36.06311797,245.25,245.05,23.776884]
[1737645536078,36.06311797,245.21,245.0,4.0816]
[1737645536275,36.06311797,245.19,245.0,4.0816]
[1737645537207,4.0771,245.27,245.01,23.776884]
[1737645537208,36.06311797,245.23,245.01,23.776884]
[1737645537381,40.14021797,245.27,245.03,23.776884]
[1737645537700,40.14021797,245.27,245.03,24.776884]
[1737645537878,40.14021797,245.27,245.06,20.0]
[1737645537879,4.0771,245.27,245.06,20.0]
[1737645538081,4.0765,245.31,245.11,23.776884]
[1737645538300,36.06311797,245.29,245.11,23.776884]
[1737645538681,36.06311797,245.25,245.02,14.2844]
[1737645538982,36.06311797,245.19,245.02,4.0812]
[1737645539187,36.06311797,245.17,245.0,0.063]
[1737645539395,36.06311797,245.19,245.0,4.1445]
[1737645539683,36.06311797,245.17,245.01,0.0570216]
[1737645539881,4.0786,245.18,245.01,0.0570216]
[1737645540105,36.06311797,245.16,245.01,23.8339056]
[1737645540280,36.06311797,245.12,245.01,0.02099829]
[1737645540623,14.2751,245.18,245.01,0.02099829]
[1737645540624,36.06311797,245.09,245.01,0.02099829]
[1737645540914,36.06311797,245.11,245.0,0.063]
[1737645541103,36.06311797,245.13,245.0,0.063]
[1737645541408,14.2751,245.18,245.0,4.1445]
[1737645541409,36.06311797,245.15,245.0,4.1445]
[1737645541579,36.06311797,245.13,245.0,0.063]
[1737645541780,36.06311797,245.11,245.0,4.1445]
[1737645541981,36.06311797,245.13,245.0,0.063]
[1737645542197,36.06311797,245.13,245.0,4.1445]
[1737645542393,36.06311797,245.11,245.0,0.063]
[1737645542712,36.06311797,245.07,245.0,0.063]
[1737645542910,36.06311797,245.09,245.0,0.063]
[1737645543089,40.14241797,245.14,245.0,0.063]
[1737645543297,36.06311797,245.28,245.0,0.063]
[1737645543298,40.14181797,245.18,245.01,23.776884]
[1737645543729,40.14181797,245.18,245.0,4.1445]
[1737645543730,36.06311797,245.14,245.0,4.1445]
[1737645544004,36.06311797,245.12,245.0,0.063]
[1737645544212,36.06311797,245.12,245.0,4.1445]
[1737645544394,36.06311797,245.14,245.0,4.1445]
[1737645544713,36.06311797,245.2,245.01,23.776884]
[1737645544897,36.06311797,245.22,245.01,23.776884]
[1737645545101,36.06311797,245.2,245.01,23.776884]
[1737645545305,36.06311797,245.16,245.0,4.1445]
[1737645545489,36.06311797,245.14,245.0,4.1445]
[1737645545690,4.0779,245.22,245.0,0.063]
[1737645545691,36.06311797,245.1,245.0,0.063]
[1737645545904,4.0795,245.13,245.0,4.1445]
[1737645546220,36.06311797,245.1,245.0,0.063]
[1737645546713,4.0795,245.13,245.01,4.0814]
[1737645546888,4.0795,245.13,245.0,0.063]
[1737645547086,4.0792,245.15,245.0,4.1445]
[1737645547290,36.06311797,245.18,245.01,23.776884]
[1737645547494,36.06311797,245.24,245.08,20.0]
[1737645547695,36.06311797,245.28,245.14,23.776884]
[1737645548018,36.06311797,245.26,245.1,14.2798]
[1737645548207,36.06311797,245.22,245.06,4.0806]
[1737645548515,36.06311797,245.22,244.97,1.0]
[1737645548516,36.06311797,245.13,244.87,10.3464]
[1737645548714,36.06311797,245.11,244.87,10.3464]
[1737645549012,36.06311797,245.07,244.87,10.3464]
[1737645549183,36.06311797,245.04,244.87,10.3464]
[1737645549383,36.06311797,245.04,244.92,4.0828]
[1737645549616,2.0,245.11,244.87,10.3464]
[1737645549920,36.06311797,245.08,244.9,10.2081]
[1737645550215,36.06311797,245.1,244.96,4.0821]
[1737645550414,36.06311797,245.06,244.9,4.0831]
[1737645550596,36.06311797,245.04,244.87,10.3464]
[1737645551102,36.06311797,245.02,244.87,10.3464]
[1737645551502,36.06311797,245.04,244.87,10.3464]
[1737645551704,36.06311797,245.06,244.87,10.3464]
[1737645551914,36.06311797,245.04,244.9,20.0]
[1737645552087,1.0,245.13,244.95,6.7969]
[1737645552088,36.06311797,245.06,244.95,6.7969]
[1737645552283,36.06311797,245.08,244.95,2.7145]
[1737645552598,36.06311797,245.16,245.01,23.776884]
[1737645552803,36.06311797,245.2,245.04,20.0]
[1737645553109,0.03,245.18,245.08,20.0]
[1737645553311,36.06311797,245.16,245.0,4.1446]
[1737645553693,36.09311797,245.18,245.0,4.1446]
[1737645553898,40.17181797,245.18,245.0,14.3486]
[1737645554103,36.09311797,245.18,245.0,14.3486]
[1737645554306,0.03,245.18,245.04,23.776884]
[1737645554520,0.03,245.18,245.12,312.0]
[1737645554890,0.03,245.18,245.0,14.3486]
[1737645554891,36.09311797,245.18,245.0,14.3486]
[1737645555311,36.09311797,245.18,245.01,23.776884]
[1737645555497,0.03,245.18,245.01,23.776884]
[1737645555821,0.03,245.18,245.03,23.776884]
[1737645556214,0.03,245.18,245.02,4.0812]
[1737645556734,36.06311797,245.16,245.02,4.0812]
[1737645556900,36.09311797,245.18,245.02,4.0812]
[1737645557093,0.03,245.18,245.03,23.776884]
[1737645557295,36.09311797,245.18,245.02,4.0812]
[1737645557517,36.06311797,245.16,245.02,4.0812]
[1737645557731,36.06311797,245.09,245.0,0.063]
[1737645558203,36.06311797,245.11,245.0,0.063]
[1737645558517,36.06311797,245.02,244.83,15.05794043]
[1737645558735,36.06311797,244.94,244.83,15.05794043]
[1737645558928,36.06311797,244.96,244.83,15.05794043]
[1737645559300,36.06311797,244.87,244.8,1.005]
[1737645559497,1.0,244.95,244.8,1.005]
[1737645559798,36.06311797,244.89,244.8,1.005]
[1737645560017,36.06311797,244.91,244.8,1.005]
[1737645560197,36.06311797,244.93,244.8,5.0898]
[1737645560396,36.06311797,244.95,244.81,2.6072]
[1737645560616,36.06311797,244.97,244.81,2.6072]
[1737645560822,36.06311797,244.94,244.81,2.6072]
[1737645561126,36.06311797,244.92,244.81,2.6072]
[1737645561339,36.06311797,244.99,244.81,2.6072]
[1737645561508,36.06311797,244.97,244.82,23.776884]
[1737645561697,36.06311797,244.97,244.83,4.0844]
[1737645561896,30.5961,245.13,244.83,4.0844]
[1737645561897,36.06311797,244.95,244.83,4.0844]
[1737645562110,36.06311797,244.93,244.83,4.0844]
[1737645562392,36.06311797,245.0,244.81,2.6072]
[1737645562599,36.06311797,244.93,244.81,2.6072]
[1737645562902,36.06311797,244.87,244.81,2.6072]
[1737645563516,36.06311797,244.91,244.81,2.6072]
[1737645563712,36.06311797,244.91,244.83,4.0844]
[1737645563913,36.06311797,244.91,244.82,4.0846]
[1737645564099,36.06311797,244.89,244.81,2.6072]
[1737645564625,36.06311797,244.91,244.82,23.776884]
[1737645565027,4.0817,244.99,244.81,6.6918]
[1737645565028,36.06311797,244.89,244.81,6.6918]
[1737645565240,36.06311797,244.87,244.81,6.6918]
[1737645565820,36.06311797,244.91,244.81,6.6918]
[1737645566020,36.06311797,244.91,244.82,23.776884]
[1737645566214,36.06311797,244.91,244.81,6.6918]
[1737645566410,36.06311797,244.91,244.82,23.776884]
[1737645566717,1.0,245.05,244.82,23.776884]
[1737645566718,36.06311797,244.95,244.82,23.776884]
[1737645566919,36.06311797,244.97,244.85,23.776884]
[1737645567128,36.06311797,244.91,244.81,16.9668]
[1737645567625,36.06311797,244.93,244.81,16.9668]
[1737645567831,36.06311797,244.93,244.81,328.9668]
[1737645568037,36.06311797,244.93,244.81,318.7548]
[1737645568332,36.06311797,244.95,244.81,17.9668]
[1737645568538,36.06311797,244.97,244.82,23.776884]
[1737645568709,36.06311797,244.95,244.82,23.776884]
[1737645568908,36.06311797,244.93,244.82,23.776884]
[1737645569332,36.06311797,244.95,244.82,23.776884]
[1737645569741,36.06311797,245.02,244.84,23.776884]
[1737645570046,36.06311797,245.02,244.87,10.915]
[1737645570209,4.0803,245.08,244.87,10.915]
[1737645570210,36.06311797,245.0,244.87,10.915]
[1737645570713,36.06311797,245.04,244.87,10.915]
[1737645570927,36.06311797,245.02,244.87,10.915]
[1737645571108,36.06311797,245.04,244.87,10.915]
[1737645571308,36.06311797,245.02,244.9,312.0]
[1737645571617,36.06311797,245.02,244.91,27.859984]
[1737645571830,36.06311797,245.02,244.91,23.776884]
[1737645572012,36.06311797,244.96,244.87,10.915]
[1737645572605,36.06311797,245.04,244.87,10.915]
[1737645572820,36.06311797,245.04,244.87,14.9987]
[1737645573037,36.06311797,245.04,244.88,23.776884]
[1737645573614,14.2793,245.11,244.91,4.0831]
[1737645573615,4.0807,245.05,244.91,4.0831]
[1737645573937,36.06311797,245.06,244.91,4.0831]
[1737645574245,36.06311797,245.12,244.96,23.776884]
[1737645574416,36.09311797,245.18,245.0,23.776884]
[1737645574752,0.03,245.18,245.04,23.776884]
[1737645574913,0.03,245.18,245.07,1.0]
[1737645575111,0.03,245.18,245.1,23.776884]
[1737645575311,36.09311797,245.18,244.99,2.61184033]
[1737645575617,4.0791,245.15,244.99,20.0]
[1737645575926,36.06311797,245.14,244.98,4.0819]
[1737645576118,36.06311797,245.1,244.97,2.6352]
[1737645576319,36.06311797,245.08,244.97,2.6352]
[1737645576524,36.06311797,245.06,244.97,2.6352]
[1737645576729,36.06311797,245.02,244.97,2.6352]
[1737645577125,36.06311797,245.0,244.87,10.915]
[1737645577333,36.06311797,244.98,244.87,10.915]
[1737645577511,36.06311797,244.96,244.86,2.6671]
[1737645577712,36.06311797,244.94,244.86,2.6671]
[1737645578012,4.0824,244.95,244.86,2.6671]
[1737645578013,36.06311797,244.92,244.86,2.6671]
[1737645578214,36.06311797,244.94,244.86,2.6671]
[1737645578518,36.06311797,244.9,244.86,2.6671]
[1737645578912,36.06311797,244.95,244.86,2.6671]
[1737645579731,36.06311797,244.93,244.86,2.6671]
[1737645579925,36.06311797,244.91,244.86,2.6671]
[1737645580224,36.06311797,244.87,244.86,2.6671]
[1737645580427,36.06311797,244.87,244.81,0.063]
[1737645580742,36.06311797,244.98,244.81,23.839884]
[1737645580931,14.41463615,245.05,244.81,0.063]
[1737645580932,36.06311797,244.94,244.81,0.063]
[1737645581135,36.06311797,244.88,244.81,0.063]
[1737645581330,36.06311797,244.84,244.81,0.063]
[1737645581535,36.06311797,244.86,244.81,0.063]
[1737645581732,36.06311797,244.88,244.81,0.063]
[1737645581936,36.06311797,244.86,244.81,0.063]
[1737645582122,36.06311797,244.82,244.81,0.063]
[1737645582321,36.06311797,244.82,244.58,10.2212]
[1737645582322,1.0,244.81,244.48,4.0903]
[1737645582538,36.06311797,244.73,244.49,1.0]
[1737645582723,36.06311797,244.71,244.48,4.0903]
[1737645582935,36.06311797,244.71,244.49,1.0]
[1737645583135,3.1663044,244.83,244.51,1.0]
[1737645583136,36.06311797,244.73,244.51,1.0]
[1737645583442,36.06311797,244.73,244.55,2.0]
[1737645583619,36.06311797,244.75,244.53,1.0]
[1737645583820,36.06311797,244.71,244.54,4.0893]
[1737645584036,36.06311797,244.69,244.49,4.0901]
[1737645584322,36.06311797,244.67,244.49,4.0901]
[1737645584850,36.06311797,244.63,244.49,4.0901]
[1737645585066,36.06311797,244.61,244.47,4.65019647]
[1737645585236,36.06311797,244.68,244.5,1.0]
[1737645585563,36.06311797,244.72,244.51,20.0]
[1737645585856,36.06311797,244.74,244.57,20.0]
[1737645586230,36.06311797,244.76,244.58,1.0]
[1737645586429,4.0841,244.85,244.58,23.776884]
[1737645586430,36.06311797,244.74,244.58,23.776884]
[1737645586856,36.06311797,244.74,244.6,23.776884]
[1737645587237,36.06311797,244.76,244.6,23.776884]
[1737645588150,36.06311797,244.76,244.66,26.409184]
[1737645588330,36.06311797,244.82,244.66,26.409184]
[1737645588727,36.06311797,244.8,244.66,26.409184]
[1737645588931,36.06311797,244.78,244.67,4.0871]
[1737645589131,36.06311797,244.78,244.68,23.776884]
[1737645589331,36.06311797,244.83,244.68,23.776884]
[1737645589755,36.06311797,244.81,244.67,14.3049]
[1737645589933,36.06311797,244.77,244.67,4.0871]
[1737645590244,36.06311797,244.89,244.72,21.0]
[1737645590444,36.06311797,244.91,244.77,23.776884]
[1737645590633,36.06311797,244.97,244.85,2.6682]
[1737645590972,36.06311797,245.03,244.92,23.776884]
[1737645591297,0.03,245.04,244.99,20.0]
[1737645591460,0.063,245.05,245.03,20.0]
[1737645591636,36.06311797,245.13,245.04,2.6682]
[1737645592059,36.06311797,245.11,245.04,2.6682]
[1737645592235,36.06311797,245.09,245.04,2.6682]
[1737645592564,36.06311797,245.07,245.04,2.6682]
[1737645592771,36.06311797,245.05,245.04,2.6682]
[1737645593067,36.06311797,245.05,244.9,6.6898]
[1737645593268,36.06311797,245.06,244.91,23.776884]
[1737645593441,36.06311797,245.08,244.95,23.776884]
[1737645593851,36.06311797,245.06,244.94,20.0]
[1737645594270,36.06311797,245.06,244.91,23.776884]
[1737645594449,36.06311797,245.08,244.94,20.0]
[1737645594655,36.06311797,245.08,244.95,23.776884]
[1737645594857,36.06311797,245.1,244.95,23.776884]
[1737645595077,36.06311797,245.12,244.97,23.776884]
[1737645595571,0.03,245.18,244.97,23.776884]
[1737645595572,36.06311797,245.1,244.99,20.0]
[1737645595752,0.03,245.18,244.96,4.0822]
[1737645595753,36.06311797,245.03,244.96,4.0822]
[1737645596263,36.06311797,245.01,244.9,6.6898]
[1737645596462,36.06311797,245.03,244.9,6.6898]
[1737645596954,36.06311797,245.05,244.9,16.898]
[1737645597153,36.06311797,245.07,244.91,23.776884]
[1737645597361,36.06311797,245.09,244.94,20.0]
[1737645597547,36.06311797,245.09,244.95,23.776884]
[1737645597864,36.06311797,245.12,244.95,23.776884]
[1737645598061,36.06311797,245.12,244.95,24.776884]
[1737645598264,36.06311797,245.12,244.99,23.776884]
[1737645598443,36.06311797,245.1,244.98,20.0]
[1737645598787,36.06311797,245.06,244.9,16.898]
[1737645598949,36.06311797,245.06,244.9,6.6898]
[1737645599152,36.06311797,245.04,244.9,6.6898]
[1737645600864,40.14451797,245.02,244.9,6.6898]
[1737645601055,36.06311797,245.09,244.9,7.6898]
[1737645601251,36.06311797,245.09,244.94,23.776884]
[1737645601479,36.06311797,245.05,244.93,20.0]
[1737645601785,36.06311797,245.03,244.9,6.6898]
[1737645601955,36.06311797,245.01,244.9,6.6898]
[1737645602156,36.06311797,244.97,244.9,2.6066]
[1737645602486,36.06311797,245.05,244.91,4.0831]
[1737645602651,36.06311797,245.09,244.96,23.776884]
[1737645602857,36.06311797,245.13,244.96,23.776884]
[1737645603058,36.06311797,245.11,244.97,14.2874]
[1737645603359,0.063,245.04,244.98,23.776884]
[1737645603582,36.06311797,245.14,245.01,20.0]
[1737645603765,36.06311797,245.16,245.02,23.776884]
[1737645604079,36.06311797,245.16,244.97,14.2874]
[1737645604080,36.06311797,245.14,244.97,14.2874]
[1737645604387,36.06311797,245.14,245.01,20.0]
[1737645604683,36.06311797,245.14,245.02,23.776884]
[1737645604861,36.06311797,245.14,245.01,332.0]
[1737645605058,36.06311797,245.08,244.94,4.0826]
[1737645605265,36.06311797,245.04,244.91,4.0831]
[1737645605459,36.06311797,245.02,244.91,4.0831]
[1737645605981,36.06311797,245.1,244.99,20.0]
[1737645606301,36.06311797,245.11,244.99,20.0]
[1737645606456,36.06311797,245.11,244.91,15.94030446]
[1737645606658,36.06311797,245.13,244.98,20.0]
[1737645606858,36.06311797,245.15,244.99,23.776884]
[1737645607085,36.06311797,245.15,245.03,20.0]
[1737645607264,36.06311797,245.15,245.0,14.2856]
[1737645607265,36.06311797,245.17,245.04,20.0]
[1737645607684,36.06311797,245.15,245.01,23.776884]
[1737645607877,36.06311797,245.11,244.96,4.0822]
[1737645608078,36.06311797,245.08,244.96,4.0822]
[1737645608276,36.06311797,245.12,244.96,4.0822]
[1737645608480,36.06311797,245.1,244.96,4.0822]
[1737645608679,36.06311797,245.12,244.96,4.0822]
[1737645608878,36.06311797,245.04,244.88,4.0834]
[1737645609079,1.0,245.11,244.81,11.0802]
[1737645609080,40.14381797,245.06,244.85,1.0]
[1737645609382,36.06311797,245.06,244.91,23.776884]
[1737645609708,36.06311797,245.08,244.91,23.776884]
[1737645609915,36.06311797,245.0,244.9,2.6066]
[1737645610283,36.06311797,245.02,244.9,6.6898]
[1737645610501,36.06311797,245.04,244.9,6.6898]
[1737645610681,36.06311797,245.08,244.94,20.0]
[1737645610878,36.06311797,245.1,244.94,20.0]
[1737645611087,36.06311797,245.1,244.95,4.0824]
[1737645611284,36.06311797,245.08,244.95,4.0824]
[1737645611583,36.06311797,245.07,244.95,4.0824]
[1737645611913,36.06311797,245.05,244.92,4.0828]
[1737645612216,36.06311797,245.11,244.93,23.776884]
[1737645612384,36.06311797,245.13,244.95,23.776884]
[1737645612586,36.06311797,245.13,244.93,1.0]
[1737645612801,36.06311797,245.13,244.97,20.0]
[1737645613003,36.06311797,245.11,244.94,23.776884]
[1737645613311,36.06311797,245.11,244.95,20.0]
[1737645613517,36.06311797,245.08,244.92,4.0829]
[1737645613809,36.06311797,244.98,244.88,4.0835]
[1737645614016,36.06311797,244.96,244.86,4.0838]
[1737645614313,36.06311797,244.96,244.85,4.0841]
[1737645614498,36.06311797,244.96,244.87,4.0836]
[1737645614809,36.06311797,244.92,244.79,2.8111]
[1737645615009,36.06311797,244.88,244.79,2.8111]
[1737645615200,40.14671797,244.88,244.79,2.8111]
[1737645615380,36.06311797,244.88,244.79,2.8111]
[1737645615585,36.06311797,244.9,244.79,6.8962]
[1737645615887,36.06311797,244.94,244.82,20.0]
[1737645616113,36.06311797,244.98,244.83,23.776884]
[1737645616303,36.06311797,244.98,244.79,17.139]
[1737645616609,2.61301632,245.08,244.79,17.139]
[1737645616610,36.06311797,244.96,244.8,23.776884]
[1737645616919,36.06311797,245.04,244.85,2.0]
[1737645617217,36.06311797,245.06,244.91,20.0]
[1737645617512,36.06311797,245.08,244.92,23.776884]
[1737645617821,36.06311797,245.1,245.0,312.0]
[1737645618114,36.06311797,245.08,245.0,312.0]
[1737645618312,36.06311797,245.08,244.91,11.0966]
[1737645618513,36.06311797,245.1,244.95,43.776884]
[1737645618839,36.06311797,245.17,245.05,23.776884]
[1737645619116,36.06311797,245.15,244.98,4.0819]
[1737645619412,36.06311797,245.09,244.96,6.9025]
[1737645619782,36.06311797,245.11,244.99,20.0]
[1737645620092,36.06311797,245.09,244.96,2.8203]
[1737645620289,36.06311797,245.11,244.96,2.8203]
[1737645620587,0.03,245.18,245.01,23.776884]
[1737645620588,36.06311797,245.16,245.01,23.776884]
[1737645620903,36.06311797,245.16,244.96,17.1082]
[1737645621104,36.06311797,245.1,244.96,6.9025]
[1737645621406,36.06311797,245.14,244.96,6.9025]
[1737645621595,36.06311797,245.1,244.96,2.8203]
[1737645621793,36.06311797,245.06,244.96,2.8203]
[1737645622003,36.06311797,245.02,244.96,2.8203]
[1737645622215,36.06311797,245.0,244.96,2.8203]
[1737645622390,36.06311797,244.98,244.82,2.6679]
[1737645622598,36.06311797,244.93,244.82,2.6679]
[1737645622798,36.06311797,244.89,244.82,2.6679]
[1737645623017,36.06311797,244.84,244.79,0.03]
[1737645623224,36.06311797,244.92,244.79,0.03]